[Event "Titled Tuesday Blitz August 17 2021"]
[White "Stefanov, Plamen"]
[Black "Bonte, Andrei-Mihai"]
[WhiteFideId "2900980"]
[BlackFideId "1210297"]
[WhiteElo "2137"]
[BlackElo "2200"]
[Result "0-1"]
[Round "10"]
[TimeControl "180+1"]
[Date "2021.08.18"]
[WhiteClock "0:01:20"]
[BlackClock "0:00:23"]

1. e4 {[%clk 0:02:57]}  c6 {[%clk 0:01:48]} 2. d4 {[%clk 0:02:56]}  d5 {[%clk 0:01:48]} 3. exd5 {[%clk 0:02:56]}  cxd5 {[%clk 0:01:48]} 4. c4 {[%clk 0:02:57]}  Nf6 {[%clk 0:01:48]} 5. Nc3 {[%clk 0:02:58]}  Nc6 {[%clk 0:01:47]} 6. Nf3 {[%clk 0:02:57]}  Bg4 {[%clk 0:01:47]} 7. c5 {[%clk 0:02:57]}  Bxf3 {[%clk 0:01:43]} 8. gxf3 {[%clk 0:02:56]}  e5 {[%clk 0:01:41]} 9. Qe2 {[%clk 0:02:51]}  Nxd4 {[%clk 0:01:36]} 10. Qxe5+ {[%clk 0:02:51]}  Qe7 {[%clk 0:01:37]} 11. Bb5+ {[%clk 0:02:49]}  Nxb5 {[%clk 0:01:33]} 12. Qxe7+ {[%clk 0:02:49]}  Bxe7 {[%clk 0:01:34]} 13. Nxb5 {[%clk 0:02:49]}  O-O {[%clk 0:01:32]} 14. O-O {[%clk 0:02:47]}  Bxc5 {[%clk 0:01:32]} 15. Bg5 {[%clk 0:02:42]}  a6 {[%clk 0:01:08]} 16. Bxf6 {[%clk 0:02:41]}  axb5 {[%clk 0:01:08]} 17. Bc3 {[%clk 0:02:36]}  d4 {[%clk 0:00:15]} 18. Bd2 {[%clk 0:02:35]}  Rfe8 {[%clk 0:00:14]} 19. b4 {[%clk 0:02:27]}  Bb6 {[%clk 0:00:14]} 20. a3 {[%clk 0:02:25]}  f6 {[%clk 0:00:15]} 21. Rfe1 {[%clk 0:02:23]}  Kf7 {[%clk 0:00:15]} 22. Kf1 {[%clk 0:02:23]}  Rxe1+ {[%clk 0:00:16]} 23. Bxe1 {[%clk 0:02:23]}  Ke6 {[%clk 0:00:15]} 24. Ke2 {[%clk 0:02:22]}  Kd5 {[%clk 0:00:16]} 25. Kd3 {[%clk 0:02:22]}  Re8 {[%clk 0:00:14]} 26. Bd2 {[%clk 0:02:21]}  Ra8 {[%clk 0:00:13]} 27. Bf4 {[%clk 0:02:15]}  Bd8 {[%clk 0:00:11]} 28. Bc1 {[%clk 0:02:11]}  Be7 {[%clk 0:00:12]} 29. Rb1 {[%clk 0:02:09]}  Bd6 {[%clk 0:00:12]} 30. Bb2 {[%clk 0:02:02]}  Bxh2 {[%clk 0:00:10]} 31. Rh1 {[%clk 0:02:01]}  Be5 {[%clk 0:00:10]} 32. Rxh7 {[%clk 0:02:01]}  f5 {[%clk 0:00:11]} 33. Rh5 {[%clk 0:01:58]}  Ke6 {[%clk 0:00:11]} 34. Rg5 {[%clk 0:01:50]}  Kf6 {[%clk 0:00:11]} 35. Rg2 {[%clk 0:01:48]}  Rh8 {[%clk 0:00:10]} 36. Bxd4 {[%clk 0:01:46]}  Rd8 {[%clk 0:00:10]} 37. f4 {[%clk 0:01:41]}  Rxd4+ {[%clk 0:00:11]} 38. Ke3 {[%clk 0:01:41]}  Rxf4 {[%clk 0:00:12]} 39. f3 {[%clk 0:01:40]}  g5 {[%clk 0:00:12]} 40. Rc2 {[%clk 0:01:40]}  Bd4+ {[%clk 0:00:12]} 41. Ke2 {[%clk 0:01:39]}  Bb6 {[%clk 0:00:11]} 42. Rc8 {[%clk 0:01:38]}  Rc4 {[%clk 0:00:12]} 43. Rf8+ {[%clk 0:01:37]}  Ke5 {[%clk 0:00:13]} 44. Re8+ {[%clk 0:01:36]}  Kf4 {[%clk 0:00:14]} 45. Rb8 {[%clk 0:01:34]}  Rc2+ {[%clk 0:00:14]} 46. Kd3 {[%clk 0:01:34]}  Rf2 {[%clk 0:00:14]} 47. Rxb7 {[%clk 0:01:33]}  Rxf3+ {[%clk 0:00:15]} 48. Ke2 {[%clk 0:01:33]}  Rf2+ {[%clk 0:00:14]} 49. Ke1 {[%clk 0:01:33]}  Be3 {[%clk 0:00:14]} 50. Rxb5 {[%clk 0:01:31]}  Ra2 {[%clk 0:00:14]} 51. Ra5 {[%clk 0:01:30]}  Ke4 {[%clk 0:00:14]} 52. Kd1 {[%clk 0:01:28]}  Kd3 {[%clk 0:00:14]} 53. Rd5+ {[%clk 0:01:27]}  Bd4 {[%clk 0:00:15]} 54. Rxd4+ {[%clk 0:01:19]}  Kxd4 {[%clk 0:00:16]} 55. Kc1 {[%clk 0:01:18]}  Rxa3 {[%clk 0:00:16]} 56. Kb2 {[%clk 0:01:19]}  Ra4 {[%clk 0:00:16]} 57. Kb3 {[%clk 0:01:20]}  Ra1 {[%clk 0:00:16]} 58. b5 {[%clk 0:01:20]}  Rb1+ {[%clk 0:00:17]} 59. Ka4 {[%clk 0:01:20]}  Rxb5 {[%clk 0:00:18]} 60. Kxb5 {[%clk 0:01:20]}  f4 {[%clk 0:00:19]} 61. Kb4 {[%clk 0:01:21]}  g4 {[%clk 0:00:20]} 62. Kb3 {[%clk 0:01:22]}  Kd3 {[%clk 0:00:20]} 63. Kb2 {[%clk 0:01:21]}  Kd2 {[%clk 0:00:21]} 64. Kb3 {[%clk 0:01:21]}  Kd3 {[%clk 0:00:21]} 65. Kb4 {[%clk 0:01:21]}  f3 {[%clk 0:00:22]} 66. Kc5 {[%clk 0:01:21]}  g3 {[%clk 0:00:22]} 67. Kd5 {[%clk 0:01:22]}  f2 {[%clk 0:00:23]} 68. Ke5 {[%clk 0:01:23]}  g2 {[%clk 0:00:23]} 69. Kf6 {[%clk 0:01:23]}  g1=N {[%clk 0:00:23]} 70. Kg5 {[%clk 0:01:23]}  f1=R {[%clk 0:00:21]} 71. Kg4 {[%clk 0:01:23]}  Ne2 {[%clk 0:00:22]} 72. Kh3 {[%clk 0:01:23]}  Ke4 {[%clk 0:00:22]} 73. Kg4 {[%clk 0:01:23]}  Nd4 {[%clk 0:00:23]} 74. Kg5 {[%clk 0:01:24]}  Nf5 {[%clk 0:00:23]} 75. Kg6 {[%clk 0:01:25]}  Nd6 {[%clk 0:00:24]} 76. Kg7 {[%clk 0:01:24]}  Rg1+ {[%clk 0:00:23]} 77. Kf6 {[%clk 0:01:24]}  Rg2 {[%clk 0:00:22]} 78. Ke6 {[%clk 0:01:24]}  Rg6+ {[%clk 0:00:21]} 79. Kd7 {[%clk 0:01:23]}  Nc4 {[%clk 0:00:21]} 80. Kc7 {[%clk 0:01:22]}  Kd5 {[%clk 0:00:21]} 81. Kb7 {[%clk 0:01:21]}  Ne5 {[%clk 0:00:22]} 82. Kc7 {[%clk 0:01:20]}  Kc5 {[%clk 0:00:23]} 83. Kb7 {[%clk 0:01:20]}  Rg7+ {[%clk 0:00:23]} 84. Ka6 {[%clk 0:01:20]}  Rf7 {[%clk 0:00:23]} 0-1


[Site "https://www.chess.com"]

[Event "Titled Tuesday Blitz August 17 2021"]
[White "Stoyanov, Tsvetan"]
[Black "Real De Azua, Ernesto"]
[WhiteFideId "2917173"]
[BlackFideId "108154"]
[WhiteElo "2191"]
[BlackElo "2476"]
[Result "1-0"]
[Round "10"]
[TimeControl "180+1"]
[Date "2021.08.17"]
[WhiteClock "0:00:12"]
[BlackClock "0:00:03"]

1. e4 {[%clk 0:02:29]}  e5 {[%clk 0:02:58]} 2. Nf3 {[%clk 0:02:29]}  Nc6 {[%clk 0:02:58]} 3. d4 {[%clk 0:02:28]}  exd4 {[%clk 0:02:54]} 4. Nxd4 {[%clk 0:02:29]}  Bc5 {[%clk 0:02:38]} 5. Nxc6 {[%clk 0:02:28]}  Qf6 {[%clk 0:02:35]} 6. Qf3 {[%clk 0:02:28]}  bxc6 {[%clk 0:02:30]} 7. Nd2 {[%clk 0:02:27]}  Ne7 {[%clk 0:02:18]} 8. Nb3 {[%clk 0:02:23]}  Bb6 {[%clk 0:02:11]} 9. a4 {[%clk 0:02:23]}  a5 {[%clk 0:02:07]} 10. Bd2 {[%clk 0:02:23]}  Ng6 {[%clk 0:02:03]} 11. Bc3 {[%clk 0:02:22]}  Qxf3 {[%clk 0:01:51]} 12. gxf3 {[%clk 0:02:23]}  f6 {[%clk 0:01:45]} 13. Bc4 {[%clk 0:02:11]}  Ne5 {[%clk 0:01:42]} 14. Be2 {[%clk 0:02:08]}  d6 {[%clk 0:01:34]} 15. h4 {[%clk 0:01:49]}  Bd7 {[%clk 0:01:30]} 16. h5 {[%clk 0:01:48]}  Ke7 {[%clk 0:01:22]} 17. f4 {[%clk 0:01:41]}  Nf7 {[%clk 0:00:54]} 18. Rg1 {[%clk 0:01:24]}  Rhg8 {[%clk 0:00:48]} 19. Bc4 {[%clk 0:01:21]}  Be6 {[%clk 0:00:47]} 20. Bxe6 {[%clk 0:01:17]}  Kxe6 {[%clk 0:00:48]} 21. Ke2 {[%clk 0:01:08]}  g5 {[%clk 0:00:42]} 22. hxg6 {[%clk 0:01:03]}  hxg6 {[%clk 0:00:41]} 23. Rxg6 {[%clk 0:01:03]}  Rxg6 {[%clk 0:00:42]} 24. f5+ {[%clk 0:01:02]}  Ke7 {[%clk 0:00:42]} 25. fxg6 {[%clk 0:01:03]}  Ne5 {[%clk 0:00:41]} 26. Rg1 {[%clk 0:00:53]}  d5 {[%clk 0:00:30]} 27. Nd4 {[%clk 0:00:38]}  Bxd4 {[%clk 0:00:23]} 28. Bxd4 {[%clk 0:00:39]}  Nd7 {[%clk 0:00:23]} 29. exd5 {[%clk 0:00:35]}  cxd5 {[%clk 0:00:23]} 30. Rh1 {[%clk 0:00:32]}  Ke6 {[%clk 0:00:20]} 31. Bc3 {[%clk 0:00:24]}  c5 {[%clk 0:00:18]} 32. g7 {[%clk 0:00:20]}  Rg8 {[%clk 0:00:16]} 33. Rg1 {[%clk 0:00:19]}  d4 {[%clk 0:00:13]} 34. Bxa5 {[%clk 0:00:19]}  Ne5 {[%clk 0:00:13]} 35. Bd2 {[%clk 0:00:17]}  c4 {[%clk 0:00:13]} 36. f4 {[%clk 0:00:16]}  d3+ {[%clk 0:00:11]} 37. cxd3 {[%clk 0:00:16]}  cxd3+ {[%clk 0:00:12]} 38. Kf2 {[%clk 0:00:12]}  Nc4 {[%clk 0:00:09]} 39. Bc3 {[%clk 0:00:13]}  d2 {[%clk 0:00:07]} 40. Ke2 {[%clk 0:00:12]}  Kf5 {[%clk 0:00:05]} 41. b3 {[%clk 0:00:12]}  Nd6 {[%clk 0:00:05]} 42. Kxd2 {[%clk 0:00:11]}  Ne4+ {[%clk 0:00:04]} 43. Kd3 {[%clk 0:00:10]}  Nf2+ {[%clk 0:00:03]} 44. Kc4 {[%clk 0:00:10]}  Ne4 {[%clk 0:00:04]} 45. Bd4 {[%clk 0:00:10]}  Kxf4 {[%clk 0:00:04]} 46. a5 {[%clk 0:00:10]}  f5 {[%clk 0:00:04]} 47. a6 {[%clk 0:00:10]}  Nd6+ {[%clk 0:00:03]} 48. Kd5 {[%clk 0:00:11]}  Nb5 {[%clk 0:00:03]} 49. Be5+ {[%clk 0:00:11]}  Kf3 {[%clk 0:00:03]} 50. Kc5 {[%clk 0:00:11]}  Ke4 {[%clk 0:00:01]} 51. Kxb5 {[%clk 0:00:10]}  Kxe5 {[%clk 0:00:02]} 52. a7 {[%clk 0:00:11]}  f4 {[%clk 0:00:02]} 53. a8=Q {[%clk 0:00:11]}  Rxa8 {[%clk 0:00:02]} 54. g8=Q {[%clk 0:00:12]}  Rxg8 {[%clk 0:00:03]} 55. Rxg8 {[%clk 0:00:12]} 1-0


[Site "https://www.chess.com"]

[Event "Titled Tuesday Blitz August 17 2021"]
[White "Szente Varga, Fruzsina"]
[Black "Boskovic, Drasko"]
[WhiteFideId "712264"]
[BlackFideId "927368"]
[WhiteElo "2106"]
[BlackElo "2388"]
[Result "0-1"]
[Round "10"]
[TimeControl "180+1"]
[Date "2021.08.17"]
[WhiteClock "0:00:36"]
[BlackClock "0:01:51"]

1. e4 {[%clk 0:02:46]}  c5 {[%clk 0:02:52]} 2. Nf3 {[%clk 0:02:45]}  Nc6 {[%clk 0:02:51]} 3. Bb5 {[%clk 0:02:44]}  d6 {[%clk 0:02:51]} 4. d4 {[%clk 0:02:44]}  cxd4 {[%clk 0:02:51]} 5. Qxd4 {[%clk 0:02:45]}  Bd7 {[%clk 0:02:51]} 6. Qd3 {[%clk 0:02:45]}  Nf6 {[%clk 0:02:51]} 7. c4 {[%clk 0:02:45]}  a6 {[%clk 0:02:51]} 8. Bxc6 {[%clk 0:02:45]}  Bxc6 {[%clk 0:02:51]} 9. Nc3 {[%clk 0:02:46]}  g6 {[%clk 0:02:52]} 10. O-O {[%clk 0:02:46]}  Bg7 {[%clk 0:02:52]} 11. h3 {[%clk 0:02:46]}  O-O {[%clk 0:02:53]} 12. Be3 {[%clk 0:02:45]}  Rc8 {[%clk 0:02:53]} 13. b4 {[%clk 0:02:43]}  b6 {[%clk 0:02:49]} 14. b5 {[%clk 0:02:43]}  axb5 {[%clk 0:02:49]} 15. cxb5 {[%clk 0:02:43]}  Bb7 {[%clk 0:02:39]} 16. Rac1 {[%clk 0:02:36]}  Qd7 {[%clk 0:02:37]} 17. a4 {[%clk 0:02:28]}  Rxc3 {[%clk 0:02:34]} 18. Qxc3 {[%clk 0:02:21]}  Bxe4 {[%clk 0:02:28]} 19. Bxb6 {[%clk 0:02:14]}  Nd5 {[%clk 0:02:25]} 20. Qc6 {[%clk 0:02:00]}  Qf5 {[%clk 0:02:01]} 21. Nd4 {[%clk 0:01:45]}  Qg5 {[%clk 0:01:55]} 22. g3 {[%clk 0:01:19]}  Qh5 {[%clk 0:01:50]} 23. Kh2 {[%clk 0:01:00]}  Nf6 {[%clk 0:01:50]} 24. Qc3 {[%clk 0:00:36]}  Ng4+ {[%clk 0:01:50]} 25. Kg1 {[%clk 0:00:36]}  Qxh3 {[%clk 0:01:51]} 26. f3 {[%clk 0:00:36]}  Qh2# {[%clk 0:01:51]} 0-1


[Site "https://www.chess.com"]

[Event "Titled Tuesday Blitz August 17 2021"]
[White "Tanenbaum, Zachary"]
[Black "Cunha, Lucas Aguiar"]
[WhiteFideId "2060850"]
[BlackFideId "2125404"]
[WhiteElo "2165"]
[BlackElo "2361"]
[Result "0-1"]
[Round "10"]
[TimeControl "180+1"]
[Date "2021.08.17"]
[WhiteClock "0:00:02"]
[BlackClock "0:00:30"]

1. e4 {[%clk 0:02:58]}  c5 {[%clk 0:02:57]} 2. Nf3 {[%clk 0:02:59]}  e6 {[%clk 0:02:57]} 3. d4 {[%clk 0:02:59]}  cxd4 {[%clk 0:02:58]} 4. Nxd4 {[%clk 0:02:59]}  Nc6 {[%clk 0:02:59]} 5. Nc3 {[%clk 0:02:59]}  Qc7 {[%clk 0:02:59]} 6. g3 {[%clk 0:02:59]}  a6 {[%clk 0:02:59]} 7. Bg2 {[%clk 0:02:59]}  Nf6 {[%clk 0:02:59]} 8. O-O {[%clk 0:03:00]}  d6 {[%clk 0:02:59]} 9. Re1 {[%clk 0:02:59]}  Ne5 {[%clk 0:02:59]} 10. f4 {[%clk 0:02:17]}  Ned7 {[%clk 0:02:54]} 11. g4 {[%clk 0:01:38]}  g6 {[%clk 0:02:40]} 12. g5 {[%clk 0:01:37]}  Nh5 {[%clk 0:02:40]} 13. f5 {[%clk 0:01:17]}  Ne5 {[%clk 0:02:35]} 14. Rf1 {[%clk 0:01:11]}  Be7 {[%clk 0:02:27]} 15. Bh3 {[%clk 0:01:05]}  Qd8 {[%clk 0:01:22]} 16. fxe6 {[%clk 0:00:52]}  O-O {[%clk 0:01:22]} 17. exf7+ {[%clk 0:00:17]}  Rxf7 {[%clk 0:01:22]} 18. Bxc8 {[%clk 0:00:16]}  Rxc8 {[%clk 0:01:22]} 19. Rxf7 {[%clk 0:00:16]}  Nxf7 {[%clk 0:01:23]} 20. Qg4 {[%clk 0:00:13]}  Ne5 {[%clk 0:01:20]} 21. Qe6+ {[%clk 0:00:13]}  Kh8 {[%clk 0:01:19]} 22. Nd5 {[%clk 0:00:12]}  Bxg5 {[%clk 0:01:18]} 23. Bxg5 {[%clk 0:00:11]}  Qxg5+ {[%clk 0:01:19]} 24. Kh1 {[%clk 0:00:11]}  Rf8 {[%clk 0:01:17]} 25. Rg1 {[%clk 0:00:10]}  Qd8 {[%clk 0:01:09]} 26. Qh3 {[%clk 0:00:10]}  Rf2 {[%clk 0:00:52]} 27. Ne6 {[%clk 0:00:09]}  Qd7 {[%clk 0:00:43]} 28. Qe3 {[%clk 0:00:07]}  Rf3 {[%clk 0:00:36]} 29. Qh6 {[%clk 0:00:03]}  Qxe6 {[%clk 0:00:34]} 30. c4 {[%clk 0:00:01]}  Ng4 {[%clk 0:00:31]} 31. Qg5 {[%clk 0:00:02]}  Nf2+ {[%clk 0:00:29]} 32. Kg2 {[%clk 0:00:02]}  Qh3# {[%clk 0:00:30]} 0-1


[Site "https://www.chess.com"]

[Event "Titled Tuesday Blitz August 17 2021"]
[White "Thing, Bibek"]
[Black "Iskusnyh, Sergei"]
[WhiteFideId "12303135"]
[BlackFideId "4120027"]
[WhiteElo "2000"]
[BlackElo "2492"]
[Result "1/2-1/2"]
[Round "10"]
[TimeControl "180+1"]
[Date "2021.08.17"]
[WhiteClock "0:00:05"]
[BlackClock "0:00:10"]

1. e4 {[%clk 0:03:00]}  e6 {[%clk 0:02:59]} 2. d4 {[%clk 0:02:57]}  d5 {[%clk 0:02:59]} 3. Nc3 {[%clk 0:02:58]}  Nf6 {[%clk 0:02:59]} 4. e5 {[%clk 0:02:58]}  Nfd7 {[%clk 0:02:58]} 5. f4 {[%clk 0:02:59]}  c5 {[%clk 0:02:58]} 6. Nf3 {[%clk 0:03:00]}  Nc6 {[%clk 0:02:58]} 7. Be3 {[%clk 0:03:00]}  Rb8 {[%clk 0:02:56]} 8. Qd2 {[%clk 0:02:52]}  Qa5 {[%clk 0:02:54]} 9. Be2 {[%clk 0:02:17]}  b5 {[%clk 0:02:53]} 10. O-O {[%clk 0:02:14]}  b4 {[%clk 0:02:52]} 11. Nd1 {[%clk 0:02:07]}  cxd4 {[%clk 0:02:51]} 12. Nxd4 {[%clk 0:02:07]}  Nxd4 {[%clk 0:02:51]} 13. Bxd4 {[%clk 0:02:06]}  Bc5 {[%clk 0:02:52]} 14. Kh1 {[%clk 0:01:59]}  Ba6 {[%clk 0:02:49]} 15. Bxa6 {[%clk 0:01:53]}  Qxa6 {[%clk 0:02:49]} 16. Ne3 {[%clk 0:01:53]}  Qb6 {[%clk 0:01:55]} 17. c3 {[%clk 0:01:44]}  bxc3 {[%clk 0:01:52]} 18. bxc3 {[%clk 0:01:45]}  Qb2 {[%clk 0:01:50]} 19. Qd1 {[%clk 0:01:39]}  O-O {[%clk 0:01:40]} 20. f5 {[%clk 0:01:36]}  Bxd4 {[%clk 0:01:36]} 21. cxd4 {[%clk 0:01:35]}  Qc3 {[%clk 0:01:35]} 22. fxe6 {[%clk 0:01:13]}  fxe6 {[%clk 0:01:32]} 23. Qg4 {[%clk 0:01:14]}  Rfe8 {[%clk 0:01:09]} 24. Nxd5 {[%clk 0:01:13]}  exd5 {[%clk 0:00:51]} 25. Qxd7 {[%clk 0:01:11]}  Qxd4 {[%clk 0:00:51]} 26. Rae1 {[%clk 0:00:55]}  h6 {[%clk 0:00:42]} 27. e6 {[%clk 0:00:38]}  Qh4 {[%clk 0:00:40]} 28. Qf7+ {[%clk 0:00:29]}  Kh8 {[%clk 0:00:38]} 29. e7 {[%clk 0:00:29]}  d4 {[%clk 0:00:34]} 30. h3 {[%clk 0:00:28]}  d3 {[%clk 0:00:33]} 31. Qd5 {[%clk 0:00:10]}  Rxe7 {[%clk 0:00:31]} 32. Rxe7 {[%clk 0:00:08]}  Qxe7 {[%clk 0:00:31]} 33. Qxd3 {[%clk 0:00:08]}  Rd8 {[%clk 0:00:29]} 34. Qf3 {[%clk 0:00:08]}  Qe5 {[%clk 0:00:25]} 35. Qa3 {[%clk 0:00:07]}  a5 {[%clk 0:00:24]} 36. Qf3 {[%clk 0:00:06]}  Qd4 {[%clk 0:00:21]} 37. Qf4 {[%clk 0:00:03]}  a4 {[%clk 0:00:20]} 38. Qxd4 {[%clk 0:00:03]}  Rxd4 {[%clk 0:00:19]} 39. Rf8+ {[%clk 0:00:03]}  Kh7 {[%clk 0:00:19]} 40. Ra8 {[%clk 0:00:04]}  Kg6 {[%clk 0:00:19]} 41. Kh2 {[%clk 0:00:05]}  Kf6 {[%clk 0:00:18]} 42. Ra5 {[%clk 0:00:03]}  g6 {[%clk 0:00:17]} 43. Kh1 {[%clk 0:00:03]}  h5 {[%clk 0:00:16]} 44. Kh2 {[%clk 0:00:04]}  h4 {[%clk 0:00:16]} 45. Kh1 {[%clk 0:00:04]}  g5 {[%clk 0:00:16]} 46. Kh2 {[%clk 0:00:05]}  g4 {[%clk 0:00:16]} 47. hxg4 {[%clk 0:00:05]}  Rxg4 {[%clk 0:00:16]} 48. Kh3 {[%clk 0:00:06]}  Rg3+ {[%clk 0:00:16]} 49. Kh2 {[%clk 0:00:06]}  Ra3 {[%clk 0:00:15]} 50. Rh5 {[%clk 0:00:04]}  Rxa2 {[%clk 0:00:15]} 51. Rxh4 {[%clk 0:00:04]}  a3 {[%clk 0:00:15]} 52. Ra4 {[%clk 0:00:04]}  Ra1 {[%clk 0:00:15]} 53. Kg3 {[%clk 0:00:05]}  Ke5 {[%clk 0:00:14]} 54. Ra8 {[%clk 0:00:05]}  Kd4 {[%clk 0:00:14]} 55. Kg4 {[%clk 0:00:05]}  Kc3 {[%clk 0:00:14]} 56. g3 {[%clk 0:00:05]}  Kb2 {[%clk 0:00:14]} 57. Kg5 {[%clk 0:00:06]}  Rc1 {[%clk 0:00:14]} 58. g4 {[%clk 0:00:05]}  Rc5+ {[%clk 0:00:12]} 59. Kh6 {[%clk 0:00:04]}  Kb3 {[%clk 0:00:11]} 60. g5 {[%clk 0:00:04]}  Rc4 {[%clk 0:00:11]} 61. Rxa3+ {[%clk 0:00:02]}  Kxa3 {[%clk 0:00:10]} 62. g6 {[%clk 0:00:03]}  Rh4+ {[%clk 0:00:08]} 63. Kg5 {[%clk 0:00:03]}  Rh1 {[%clk 0:00:08]} 64. g7 {[%clk 0:00:04]}  Kb4 {[%clk 0:00:08]} 65. Kf6 {[%clk 0:00:05]}  Rf1+ {[%clk 0:00:08]} 66. Ke7 {[%clk 0:00:04]}  Rg1 {[%clk 0:00:08]} 67. Kf7 {[%clk 0:00:04]}  Rf1+ {[%clk 0:00:08]} 68. Ke7 {[%clk 0:00:05]}  Rg1 {[%clk 0:00:09]} 69. Kf7 {[%clk 0:00:06]}  Kc5 {[%clk 0:00:09]} 70. g8=Q {[%clk 0:00:05]}  Rxg8 {[%clk 0:00:10]} 71. Kxg8 {[%clk 0:00:05]} 1/2-1/2


[Site "https://www.chess.com"]

[Event "Titled Tuesday Blitz August 17 2021"]
[White "Timofeev, Artyom"]
[Black "Shimanov, Aleksandr"]
[WhiteFideId "4140419"]
[BlackFideId "4198603"]
[WhiteElo "2582"]
[BlackElo "2596"]
[Result "0-1"]
[Round "10"]
[TimeControl "180+1"]
[Date "2021.08.17"]
[WhiteClock "0:00:18"]
[BlackClock "0:00:46"]

1. c4 {[%clk 0:03:00]}  c6 {[%clk 0:02:59]} 2. Nf3 {[%clk 0:02:59]}  d5 {[%clk 0:02:59]} 3. b3 {[%clk 0:02:59]}  Bg4 {[%clk 0:02:57]} 4. Bb2 {[%clk 0:02:59]}  e6 {[%clk 0:02:57]} 5. e3 {[%clk 0:02:55]}  Nd7 {[%clk 0:02:56]} 6. Be2 {[%clk 0:02:55]}  Ngf6 {[%clk 0:02:55]} 7. Nc3 {[%clk 0:02:55]}  Bd6 {[%clk 0:02:52]} 8. d4 {[%clk 0:02:54]}  O-O {[%clk 0:02:49]} 9. h3 {[%clk 0:02:54]}  Bh5 {[%clk 0:02:47]} 10. O-O {[%clk 0:02:53]}  a6 {[%clk 0:02:45]} 11. a4 {[%clk 0:02:52]}  Qe7 {[%clk 0:02:44]} 12. a5 {[%clk 0:02:46]}  Rad8 {[%clk 0:02:38]} 13. Qc1 {[%clk 0:02:42]}  e5 {[%clk 0:02:25]} 14. cxd5 {[%clk 0:02:42]}  cxd5 {[%clk 0:02:25]} 15. Qd1 {[%clk 0:02:30]}  Bxf3 {[%clk 0:02:14]} 16. Bxf3 {[%clk 0:02:29]}  e4 {[%clk 0:02:14]} 17. Be2 {[%clk 0:02:28]}  Nb8 {[%clk 0:02:13]} 18. Qc1 {[%clk 0:01:54]}  Rc8 {[%clk 0:02:12]} 19. Qb1 {[%clk 0:01:46]}  Bb4 {[%clk 0:02:11]} 20. Rc1 {[%clk 0:01:43]}  Nc6 {[%clk 0:02:11]} 21. Qa2 {[%clk 0:01:30]}  Nxa5 {[%clk 0:02:05]} 22. Na4 {[%clk 0:01:27]}  Nc6 {[%clk 0:01:54]} 23. Nc5 {[%clk 0:01:26]}  a5 {[%clk 0:01:42]} 24. Qa4 {[%clk 0:01:25]}  Na7 {[%clk 0:01:13]} 25. Bf1 {[%clk 0:00:55]}  h5 {[%clk 0:01:12]} 26. g3 {[%clk 0:00:53]}  h4 {[%clk 0:01:10]} 27. g4 {[%clk 0:00:53]}  Nh7 {[%clk 0:01:10]} 28. Ba3 {[%clk 0:00:43]}  Bxa3 {[%clk 0:01:09]} 29. Qxa3 {[%clk 0:00:29]}  b6 {[%clk 0:01:09]} 30. b4 {[%clk 0:00:29]}  bxc5 {[%clk 0:01:08]} 31. b5 {[%clk 0:00:28]}  Rb8 {[%clk 0:00:59]} 32. Rxc5 {[%clk 0:00:26]}  Ng5 {[%clk 0:00:55]} 33. Be2 {[%clk 0:00:18]}  Qf6 {[%clk 0:00:48]} 34. Rxd5 {[%clk 0:00:17]}  Nxh3+ {[%clk 0:00:46]} 35. Kg2 {[%clk 0:00:18]}  Qxf2+ {[%clk 0:00:46]} 36. Kxh3 {[%clk 0:00:18]}  Qg3# {[%clk 0:00:46]} 0-1


[Site "https://www.chess.com"]

[Event "Titled Tuesday Blitz August 17 2021"]
[White "Tokman, Ariel"]
[Black "Voiteanu, Gabriel"]
[WhiteFideId "117420"]
[BlackFideId "1208810"]
[WhiteElo "2345"]
[BlackElo "2046"]
[Result "1/2-1/2"]
[Round "10"]
[TimeControl "180+1"]
[Date "2021.08.18"]
[WhiteClock "0:00:24"]
[BlackClock "0:01:07"]

1. c4 {[%clk 0:03:00]}  Nf6 {[%clk 0:02:59]} 2. Nf3 {[%clk 0:02:59]}  g6 {[%clk 0:02:58]} 3. b3 {[%clk 0:03:00]}  Bg7 {[%clk 0:02:58]} 4. Bb2 {[%clk 0:03:01]}  O-O {[%clk 0:02:58]} 5. e3 {[%clk 0:03:01]}  c5 {[%clk 0:02:57]} 6. Be2 {[%clk 0:03:02]}  Nc6 {[%clk 0:02:57]} 7. O-O {[%clk 0:03:01]}  d5 {[%clk 0:02:57]} 8. cxd5 {[%clk 0:03:02]}  Nxd5 {[%clk 0:02:57]} 9. Bxg7 {[%clk 0:03:03]}  Kxg7 {[%clk 0:02:58]} 10. Nc3 {[%clk 0:03:03]}  Nxc3 {[%clk 0:02:54]} 11. dxc3 {[%clk 0:03:04]}  Qxd1 {[%clk 0:02:49]} 12. Rfxd1 {[%clk 0:03:05]}  Bg4 {[%clk 0:02:49]} 13. h3 {[%clk 0:03:04]}  Bxf3 {[%clk 0:02:41]} 14. Bxf3 {[%clk 0:03:05]}  Rfd8 {[%clk 0:02:41]} 15. Bxc6 {[%clk 0:03:04]}  bxc6 {[%clk 0:02:41]} 16. Kf1 {[%clk 0:03:01]}  e5 {[%clk 0:02:40]} 17. e4 {[%clk 0:02:58]}  f5 {[%clk 0:02:32]} 18. Ke2 {[%clk 0:02:52]}  Kf6 {[%clk 0:02:31]} 19. Ke3 {[%clk 0:01:37]}  Ke6 {[%clk 0:02:25]} 20. f4 {[%clk 0:01:29]}  a5 {[%clk 0:02:18]} 21. fxe5 {[%clk 0:01:24]}  Kxe5 {[%clk 0:02:17]} 22. exf5 {[%clk 0:01:25]}  gxf5 {[%clk 0:02:15]} 23. Kf3 {[%clk 0:01:09]}  h5 {[%clk 0:02:08]} 24. Re1+ {[%clk 0:00:53]}  Kf6 {[%clk 0:02:07]} 25. Rad1 {[%clk 0:00:52]}  a4 {[%clk 0:01:59]} 26. Kf4 {[%clk 0:00:51]}  axb3 {[%clk 0:01:29]} 27. axb3 {[%clk 0:00:52]}  Rab8 {[%clk 0:01:28]} 28. Rxd8 {[%clk 0:00:48]}  Rxd8 {[%clk 0:01:27]} 29. Re5 {[%clk 0:00:48]}  Rd5 {[%clk 0:01:21]} 30. Rxd5 {[%clk 0:00:40]}  cxd5 {[%clk 0:01:21]} 31. b4 {[%clk 0:00:41]}  d4 {[%clk 0:01:16]} 32. bxc5 {[%clk 0:00:32]}  dxc3 {[%clk 0:01:16]} 33. Ke3 {[%clk 0:00:32]}  Ke5 {[%clk 0:01:13]} 34. Kd3 {[%clk 0:00:26]}  Kd5 {[%clk 0:01:13]} 35. Kxc3 {[%clk 0:00:25]}  Kxc5 {[%clk 0:01:14]} 36. Kd3 {[%clk 0:00:25]}  Kd5 {[%clk 0:01:12]} 37. Ke3 {[%clk 0:00:25]}  Ke5 {[%clk 0:01:12]} 38. h4 {[%clk 0:00:24]}  f4+ {[%clk 0:01:09]} 39. Kf3 {[%clk 0:00:16]}  Kf5 {[%clk 0:01:09]} 40. g3 {[%clk 0:00:17]}  fxg3 {[%clk 0:01:09]} 41. Kxg3 {[%clk 0:00:18]}  Ke4 {[%clk 0:01:09]} 42. Kh3 {[%clk 0:00:17]}  Kf3 {[%clk 0:01:09]} 43. Kh2 {[%clk 0:00:18]}  Kg4 {[%clk 0:01:09]} 44. Kh1 {[%clk 0:00:19]}  Kxh4 {[%clk 0:01:10]} 45. Kh2 {[%clk 0:00:20]}  Kg4 {[%clk 0:01:08]} 46. Kh1 {[%clk 0:00:21]}  Kg3 {[%clk 0:01:08]} 47. Kg1 {[%clk 0:00:21]}  h4 {[%clk 0:01:07]} 48. Kh1 {[%clk 0:00:22]}  h3 {[%clk 0:01:07]} 49. Kg1 {[%clk 0:00:23]}  h2+ {[%clk 0:01:07]} 50. Kh1 {[%clk 0:00:24]}  Kh3 {[%clk 0:01:07]} 1/2-1/2


[Site "https://www.chess.com"]